bitfinex/quotes_SOLUSD_20230101
["timestamp","ask_amount","ask_price","bid_price","bid_amount"]
[1672533744920,40.0,9.972,9.9544,40.0]
[1672533744921,40.0,9.9718,9.9544,40.0]
[1672533745112,75.32,9.9717,9.9544,40.0]
[1672533745316,40.0,9.9716,9.9544,40.0]
[1672533745532,95.32,9.9715,9.9544,55.80730786]
[1672533745750,40.0,9.9714,9.9546,40.0]
[1672533746058,40.0,9.9712,9.9546,40.0]
[1672533746261,95.32,9.9711,9.9547,15.80730786]
[1672533746482,40.0,9.971,9.9548,40.0]
[1672533746692,40.0,9.9708,9.9548,40.0]
[1672533746908,75.33,9.9707,9.9548,40.0]
[1672533747225,40.0,9.9706,9.9548,40.0]
[1672533747558,40.0,9.9704,9.9548,40.0]
[1672533747764,95.33,9.9703,9.9548,40.0]
[1672533747977,40.0,9.9702,9.9548,40.0]
[1672533748190,95.33,9.9701,9.9548,40.0]
[1672533748375,40.0,9.97,9.9548,40.0]
[1672533748591,40.0,9.9698,9.9548,40.0]
[1672533748920,40.0,9.9696,9.9548,40.0]
[1672533749130,40.0,9.9694,9.9548,40.0]
[1672533749329,95.34,9.9693,9.9548,40.0]
[1672533749540,40.0,9.9692,9.9548,40.0]
[1672533749751,95.34,9.9691,9.9548,40.0]
[1672533749962,40.0,9.969,9.9548,40.0]
[1672533750177,40.0,9.9688,9.9548,40.0]
[1672533750377,95.34,9.9687,9.9548,40.0]
[1672533750588,40.0,9.9686,9.9548,40.0]
[1672533750798,40.0,9.9684,9.9548,40.0]
[1672533751011,40.0,9.9682,9.9548,40.0]
[1672533751342,40.0,9.968,9.9548,40.0]
[1672533751537,95.35,9.9679,9.9548,40.0]
[1672533751747,40.0,9.9678,9.9548,40.0]
[1672533751977,40.0,9.9676,9.9548,40.0]
[1672533752189,40.0,9.9674,9.9548,40.0]
[1672533752495,95.35,9.9673,9.9548,40.0]
[1672533752687,40.0,9.9672,9.9548,40.0]
[1672533752891,95.35,9.9671,9.9548,40.0]
[1672533753107,40.0,9.967,9.9548,40.0]
[1672533753331,40.0,9.9668,9.9548,40.0]
[1672533753542,20.0,9.9667,9.9548,40.0]
[1672533753942,40.0,9.9665,9.9548,40.0]
[1672533754156,161.5484,9.9666,9.9548,40.0]
[1672533754368,40.0,9.9664,9.9548,40.0]
[1672533754597,20.0,9.9663,9.9548,40.0]
[1672533754785,40.0,9.9662,9.9545,24.8537]
[1672533754997,75.36,9.9661,9.9545,24.8537]
[1672533755219,40.0,9.966,9.9545,24.8537]
[1672533755441,40.0,9.9658,9.9545,24.8537]
[1672533755637,75.36,9.9657,9.9545,24.8537]
[1672533755842,40.0,9.9656,9.9545,24.8537]
[1672533756048,40.0,9.9654,9.9545,24.8537]
[1672533756260,75.37,9.9653,9.9545,24.8537]
[1672533756469,40.0,9.9652,9.9545,24.8537]
[1672533756695,40.0,9.965,9.9545,24.8537]
[1672533756907,40.0,9.9648,9.9545,24.8537]
[1672533757110,75.37,9.9647,9.9545,24.8537]
[1672533757325,40.0,9.9646,9.9545,24.8537]
[1672533757540,40.0,9.9644,9.9545,24.8537]
[1672533757757,40.0,9.9642,9.9545,24.8537]
[1672533757968,75.38,9.9641,9.9545,24.8537]
[1672533758187,40.0,9.964,9.9545,24.8537]
[1672533758375,40.0,9.9638,9.9545,24.8537]
[1672533758711,40.0,9.9636,9.9545,24.8537]
[1672533758903,40.0,9.9634,9.9545,24.8537]
[1672533759113,40.0,9.9632,9.9545,24.8537]
[1672533759551,40.0,9.963,9.9545,24.8537]
[1672533760271,40.0,9.9628,9.9545,24.8537]
[1672533760904,40.0,9.9626,9.9545,24.8537]
[1672533761422,40.0,9.9624,9.9545,24.8537]
[1672533762178,23.4002,9.9623,9.9545,24.8537]
[1672533762580,24.4586,9.9622,9.9545,24.8537]
[1672533768468,24.4586,9.9622,9.9546,40.0]
[1672533768993,24.4586,9.9622,9.9546,39.0]
[1672533769206,119.2309,9.9632,9.9549,30.0]
[1672533769522,119.2309,9.9632,9.9551,300.6]
[1672533769734,40.0,9.9746,9.9553,40.0]
[1672533769947,75.3,9.9745,9.9555,300.6]
[1672533770160,75.3,9.9745,9.9562,30.0]
[1672533770366,75.3,9.9745,9.9564,40.0]
[1672533770367,40.0,9.9745,9.9564,40.0]
[1672533770692,40.0,9.9743,9.9566,40.0]
[1672533770894,40.0,9.9741,9.9568,40.0]
[1672533771091,75.3,9.974,9.9568,340.6]
[1672533771301,75.3,9.974,9.9571,30.0]
[1672533771521,116.51892633,9.9739,9.9573,300.6]
[1672533771733,40.0,9.9737,9.9574,40.0]
[1672533771947,40.0,9.9735,9.9576,40.0]
[1672533772160,75.31,9.9734,9.9577,20.0]
[1672533772471,40.0,9.9733,9.9579,40.0]
[1672533772691,40.0,9.9731,9.9579,40.0]
[1672533772891,40.0,9.9729,9.9581,340.6]
[1672533773091,75.31,9.9728,9.9582,20.0]
[1672533773300,40.0,9.9727,9.9583,40.0]
[1672533773624,40.0,9.9725,9.9585,40.0]
[1672533773943,75.31,9.9724,9.9586,20.0]
[1672533774142,40.0,9.9723,9.9586,40.0]
[1672533774361,40.0,9.9721,9.9587,20.0]
[1672533774562,40.0,9.9719,9.9587,20.0]
[1672533774769,75.32,9.9718,9.9589,40.0]
[1672533774982,40.0,9.9717,9.959,20.0]
[1672533775202,40.0,9.9715,9.959,20.0]
[1672533775398,75.32,9.9714,9.9592,40.0]
[1672533775606,40.0,9.9713,9.9593,20.0]
[1672533775822,75.32,9.9712,9.9593,20.0]
[1672533776047,40.0,9.9711,9.9595,40.0]
[1672533776262,40.0,9.9711,9.9596,20.0]
[1672533776263,40.0,9.9709,9.9596,20.0]
[1672533776475,75.33,9.9708,9.9596,20.0]
[1672533776661,40.0,9.9707,9.9597,113.4354]
[1672533776872,40.0,9.9705,9.9598,60.0]
[1672533777202,40.0,9.9703,9.9598,60.0]
[1672533777411,75.33,9.9702,9.9598,60.0]
[1672533777728,40.0,9.9701,9.9598,60.0]
[1672533777941,40.0,9.9699,9.9598,20.0]
[1672533778156,40.0,9.9697,9.9598,20.0]
[1672533778348,40.0,9.9695,9.9598,20.0]
[1672533778562,75.34,9.9694,9.9599,40.0]
[1672533778887,40.0,9.9693,9.96,20.0]
[1672533779103,40.0,9.9691,9.96,20.0]
[1672533779497,40.0,9.9691,9.9504,74.35058545]
[1672533779498,20.0,9.969,9.9505,300.6]
[1672533779712,40.0,9.9688,9.9538,40.0]
[1672533779922,95.34,9.9687,9.9538,40.0]
[1672533780128,40.0,9.9686,9.9538,40.0]
[1672533780344,40.0,9.9684,9.9538,40.0]
[1672533780674,40.0,9.9682,9.954,40.0]
[1672533780896,95.35,9.9681,9.954,40.0]
[1672533781197,40.0,9.968,9.954,40.0]
[1672533781411,40.0,9.9678,9.954,40.0]
[1672533781604,40.0,9.9676,9.954,40.0]
[1672533781936,95.35,9.9675,9.954,40.0]
[1672533782244,40.0,9.9674,9.9539,300.6]
[1672533782462,40.0,9.9672,9.9539,300.6]
[1672533782663,95.35,9.9671,9.9541,40.0]
[1672533782859,95.35,9.9671,9.954,15.80730786]
[1672533782860,40.0,9.967,9.954,15.80730786]
[1672533783066,40.0,9.9668,9.954,15.80730786]
[1672533783279,40.0,9.9666,9.954,15.80730786]
[1672533783506,95.36,9.9665,9.954,15.80730786]
[1672533783699,40.0,9.9664,9.954,15.80730786]
[1672533783910,95.36,9.9663,9.9541,40.0]
[1672533784121,40.0,9.9662,9.954,15.80730786]
[1672533784332,75.36,9.9661,9.9541,40.0]
[1672533784546,40.0,9.966,9.9541,40.0]
[1672533784765,40.0,9.9658,9.9541,40.0]
[1672533784958,75.36,9.9657,9.9541,40.0]
[1672533785173,40.0,9.9656,9.9541,40.0]
[1672533785388,75.37,9.9655,9.954,119.1751]
[1672533785599,40.0,9.9654,9.954,119.1751]
[1672533785829,40.0,9.9652,9.9541,22.9494]
[1672533786036,40.0,9.965,9.9541,22.9494]
[1672533786232,75.37,9.9649,9.9541,22.9494]
[1672533786447,40.0,9.9648,9.9541,22.9494]
[1672533786653,40.0,9.9646,9.9541,22.9494]
[1672533786869,75.37,9.9645,9.9541,22.9494]
[1672533787073,40.0,9.9644,9.9542,22.9494]
[1672533787283,40.0,9.9642,9.9542,22.9494]
[1672533787499,40.0,9.964,9.9542,22.9494]
[1672533787704,75.38,9.9639,9.9542,22.9494]
[1672533787915,40.0,9.9638,9.9542,22.9494]
[1672533788129,40.0,9.9636,9.9542,22.9494]
[1672533788340,40.0,9.9634,9.9542,22.9494]
[1672533788547,75.38,9.9633,9.9542,22.9494]
[1672533788773,40.0,9.9632,9.9542,22.9494]
[1672533788959,40.0,9.963,9.9542,22.9494]
[1672533789169,40.0,9.9628,9.9542,22.9494]
[1672533789396,75.39,9.9627,9.9542,22.9494]
[1672533789719,40.0,9.9626,9.9542,22.9494]
[1672533789927,75.39,9.9625,9.9542,22.9494]
[1672533790119,40.0,9.9624,9.9542,22.9494]
[1672533790324,75.39,9.9623,9.9542,22.9494]
[1672533790559,40.0,9.9622,9.9542,22.9494]
[1672533790767,75.39,9.9621,9.9542,22.9494]
[1672533791082,40.0,9.962,9.9542,22.9494]
[1672533791296,40.0,9.9618,9.9542,22.9494]
[1672533791504,75.39,9.9617,9.9542,22.9494]
[1672533791696,40.0,9.9616,9.9542,22.9494]
[1672533791901,40.0,9.9614,9.9542,22.9494]
[1672533792117,40.0,9.9612,9.9542,22.9494]
[1672533792343,75.4,9.9611,9.9542,22.9494]
[1672533792572,40.0,9.961,9.9542,22.9494]
[1672533792748,40.0,9.9608,9.9542,22.9494]
[1672533792964,75.4,9.9607,9.9542,22.9494]
[1672533793175,40.0,9.9606,9.9542,22.9494]
[1672533793487,40.0,9.9604,9.9542,22.9494]
[1672533793703,75.39,9.9617,9.954,119.1751]
[1672533793910,75.39,9.9619,9.954,119.1751]
[1672533794112,40.0,9.9614,9.954,119.1751]
[1672533795381,115.39,9.9625,9.954,119.1751]
[1672533795598,75.38,9.9637,9.954,119.1751]
[1672533795916,116.51892633,9.965,9.954,119.1751]
[1672533795917,23.5199,9.9626,9.9541,40.0]
[1672533797065,23.5199,9.9626,9.9543,40.0]
[1672533799580,23.5199,9.9626,9.9541,40.0]
[1672533801153,40.0,9.9625,9.954,119.1751]
[1672533802203,40.0,9.9625,9.9541,40.0]
[1672533802849,23.5199,9.9626,9.9541,40.0]
[1672533803686,23.5199,9.9626,9.954,119.1751]
[1672533805058,23.5199,9.9626,9.9541,40.0]
[1672533806321,23.5199,9.9626,9.9542,15.80730786]
[1672533806530,23.5199,9.9626,9.9543,340.6]
[1672533807056,23.5199,9.9626,9.9544,69.1036225]
[1672533807258,23.5199,9.9626,9.9545,340.6]
[1672533807459,23.5199,9.9626,9.9545,409.7036225]
[1672533807665,23.5199,9.9626,9.9548,40.0]
[1672533808109,23.5199,9.9626,9.9551,40.0]
[1672533808517,23.5199,9.9626,9.9552,15.80730786]
[1672533808844,23.5199,9.9626,9.9553,40.0]
[1672533809036,23.5199,9.9626,9.9554,300.6]
[1672533809254,23.5199,9.9626,9.9555,40.0]
[1672533809462,23.5199,9.9626,9.9556,300.6]
[1672533809680,23.5199,9.9626,9.9557,40.0]
[1672533810086,23.5199,9.9626,9.9559,40.0]
[1672533810523,23.5199,9.9626,9.956,15.80730786]
[1672533810839,23.5199,9.9626,9.9561,40.0]
[1672533811261,23.5199,9.9626,9.9562,15.80730786]
[1672533812835,40.0,9.9712,9.9562,15.80730786]
[1672533812836,75.32,9.9711,9.9563,300.6]
[1672533813040,189.1071056,9.9851,9.9563,300.6]
[1672533813041,23.7636,9.9725,9.9565,40.0]
[1672533813248,23.7636,9.9725,9.9567,40.0]
[1672533813458,23.7636,9.9725,9.9568,20.0]
[1672533813665,23.7636,9.9725,9.957,300.6]
[1672533813875,23.7636,9.9724,9.9574,30.0]
[1672533814107,23.7636,9.9724,9.9575,20.0]
[1672533814418,40.0,9.9723,9.9576,40.0]
[1672533814620,23.7636,9.9724,9.9577,320.6]
[1672533814831,23.7636,9.9724,9.9578,40.0]
[1672533814832,40.0,9.9723,9.9578,40.0]
[1672533815034,40.0,9.9723,9.9583,30.0]
[1672533815252,23.7636,9.9724,9.9585,300.6]
[1672533815455,23.7636,9.9724,9.9587,40.0]
[1672533815675,23.7636,9.9724,9.959,40.0]
[1672533815989,23.7636,9.9724,9.9594,30.0]
[1672533816206,23.7636,9.9724,9.9595,40.0]
[1672533816415,23.7636,9.9724,9.9596,337.6]
[1672533816628,23.7636,9.9724,9.9597,40.0]
[1672533816832,23.2632,9.9723,9.9599,40.0]
[1672533817156,23.2632,9.9723,9.9604,40.0]
[1672533817681,23.2632,9.9723,9.9607,40.0]
[1672533817880,23.2632,9.9723,9.9608,20.0]
[1672533818197,23.2632,9.9723,9.9609,393.89631464]
[1672533818395,23.2632,9.9723,9.9611,40.0]
[1672533818607,23.2632,9.9723,9.9611,340.6]
[1672533818809,23.2632,9.9723,9.9612,15.80730786]
[1672533819023,23.2632,9.9723,9.9614,40.0]
[1672533819244,24.5799,9.9722,9.9614,340.6]
[1672533819454,24.5799,9.9722,9.9616,40.0]
[1672533819673,24.5799,9.9722,9.9618,40.0]
[1672533819886,24.5799,9.9721,9.9618,340.6]
[1672533820097,24.5799,9.9721,9.962,40.0]
[1672533820291,24.5799,9.9721,9.962,340.6]
[1672533820501,24.5799,9.972,9.9622,300.6]
[1672533820712,24.5799,9.972,9.9624,300.6]
[1672533821032,23.2174,9.9719,9.9625,40.0]
[1672533821244,23.2174,9.9719,9.9626,300.6]
[1672533821452,23.2174,9.9719,9.9627,40.0]
[1672533821768,23.2174,9.9719,9.9629,40.0]
[1672533821983,23.2174,9.9718,9.9631,40.0]
[1672533822189,23.2174,9.9718,9.9632,17.0]
[1672533822403,23.2174,9.9718,9.9633,340.6]
[1672533822818,23.2174,9.9717,9.9633,340.6]
[1672533823019,23.4497,9.9757,9.9636,40.0]
[1672533823228,40.0,9.9755,9.9636,40.0]
[1672533823869,167.5656,9.9754,9.9639,40.0]
[1672533824505,40.0,9.9752,9.9641,40.0]
[1672533824822,167.5656,9.9753,9.9641,40.0]
[1672533825032,40.0,9.975,9.9643,40.0]
[1672533825561,40.0,9.9748,9.9643,62.6358]
[1672533826170,40.0,9.9746,9.9643,62.6358]
[1672533826405,160.7332,9.9747,9.9643,62.6358]
[1672533826826,40.0,9.9745,9.9643,62.6358]
[1672533827447,160.1578,9.9744,9.9643,62.6358]
[1672533827765,40.0,9.9743,9.9643,62.6358]
[1672533827986,200.1578,9.9743,9.9643,62.6358]
[1672533828616,40.0,9.9741,9.9643,62.6358]
[1672533829230,48.0463,9.974,9.9643,62.6358]
[1672533829761,40.0,9.9739,9.9643,62.6358]
[1672533830089,24.1083,9.9739,9.9643,62.6358]
[1672533830496,24.574,9.9738,9.9643,62.6358]
[1672533831140,24.574,9.9737,9.9644,24.3533]
[1672533831668,24.574,9.9737,9.9645,40.0]
[1672533831981,24.574,9.9736,9.9645,40.0]
[1672533832388,24.574,9.9735,9.9645,40.0]
[1672533832929,24.574,9.9734,9.9645,40.0]
[1672533833452,24.574,9.9733,9.9645,40.0]
[1672533834197,24.6823,9.9732,9.9645,40.0]
[1672533834932,24.6823,9.9731,9.9645,40.0]
[1672533835554,24.6823,9.973,9.9645,40.0]
[1672533836274,24.6823,9.9729,9.9645,40.0]
[1672533836901,23.5096,9.9728,9.9645,40.0]
[1672533837554,23.5096,9.9727,9.9645,40.0]
[1672533838601,23.5096,9.9726,9.9645,40.0]
[1672533839207,23.5096,9.9725,9.9645,40.0]
[1672533840180,23.1221,9.9724,9.9645,40.0]
[1672533840800,23.1221,9.9723,9.9645,40.0]
[1672533841207,23.1221,9.9723,9.9644,24.3533]
[1672533841437,63.1221,9.9722,9.9644,24.3533]
[1672533842262,40.0,9.972,9.9644,24.3533]
[1672533843016,64.0772,9.972,9.9644,24.3533]
[1672533844359,75.32,9.9719,9.9644,24.3533]
[1672533844579,40.0,9.9718,9.9644,24.3533]
[1672533844795,40.0,9.9716,9.9644,24.3533]
[1672533845009,24.0772,9.9719,9.9644,24.3533]
[1672533845215,24.0772,9.9719,9.9645,40.0]
[1672533845751,24.0772,9.9719,9.9644,24.3533]
[1672533846890,24.0772,9.9719,9.9645,40.0]
[1672533847724,24.0772,9.9719,9.9644,24.3533]
[1672533848161,40.0,9.9718,9.9644,24.3533]
[1672533850268,24.0772,9.9719,9.9644,24.3533]
[1672533851517,40.0,9.9718,9.9644,24.3533]
[1672533851928,24.0772,9.9719,9.9644,24.3533]
[1672533854867,40.0,9.9718,9.9644,24.3533]
[1672533857301,24.0772,9.9719,9.9644,24.3533]
[1672533857711,24.0772,9.9719,9.9645,40.0]
[1672533866855,24.0772,9.9719,9.9646,15.80730786]
[1672533867290,24.0772,9.9719,9.9647,40.0]
[1672533867731,24.0772,9.9719,9.9648,15.80730786]
[1672533870318,75.25,9.9803,9.9649,63.11223036]
[1672533870529,24.7475,9.9803,9.9652,74.35058545]
[1672533870754,24.7475,9.9803,9.9653,337.6]
[1672533870755,46.7926,9.9802,9.9653,337.6]
[1672533871068,46.7926,9.9802,9.9655,374.95058545]
[1672533871069,40.0,9.9801,9.9655,374.95058545]
[1672533871278,40.0,9.9801,9.9657,40.0]
[1672533871505,40.0,9.9801,9.9659,40.0]
[1672533871692,40.0,9.9801,9.966,20.0]
[1672533872019,40.0,9.9799,9.9662,40.0]
[1672533872227,75.26,9.9798,9.9663,20.0]
[1672533872536,75.26,9.9798,9.9665,40.0]
[1672533872752,46.7926,9.9802,9.9665,40.0]
[1672533872753,75.26,9.9801,9.9667,40.0]
[1672533872945,40.0,9.98,9.9669,40.0]
[1672533873155,75.26,9.9799,9.967,20.0]
[1672533873361,40.0,9.9798,9.9671,40.0]
[1672533873592,75.26,9.9797,9.9673,40.0]
[1672533873910,40.0,9.9798,9.9675,40.0]
[1672533874102,75.26,9.9797,9.9675,40.0]
[1672533874314,75.26,9.9797,9.9677,40.0]
[1672533874534,46.7926,9.9802,9.9678,20.0]
[1672533874735,46.7926,9.9802,9.968,40.0]
[1672533874943,75.26,9.9801,9.9681,20.0]
[1672533875163,75.26,9.9801,9.9682,40.0]
[1672533875374,75.26,9.9801,9.9684,40.0]
[1672533875588,75.26,9.9801,9.9686,40.0]
[1672533876011,75.26,9.9801,9.9688,300.6]
[1672533876221,75.26,9.9801,9.9689,40.0]
[1672533876419,75.26,9.9801,9.969,20.0]
[1672533876627,75.26,9.9801,9.9691,40.0]
[1672533876850,75.26,9.9801,9.9693,40.0]
[1672533877058,75.26,9.9801,9.9694,20.0]
[1672533877270,75.26,9.9801,9.9694,43.8134]
[1672533877481,75.26,9.9801,9.9695,40.0]
[1672533877789,75.26,9.9801,9.9696,300.6]
[1672533878001,46.7926,9.9802,9.9698,40.0]
[1672533878195,46.7926,9.9802,9.97,40.0]
[1672533878412,46.7926,9.9802,9.9701,20.0]
[1672533878622,46.7926,9.9802,9.9702,40.0]
[1672533878831,46.7926,9.9802,9.9702,340.6]
[1672533879050,46.7926,9.9802,9.9704,40.0]
[1672533879272,46.7926,9.9802,9.9704,340.6]
[1672533879461,46.7926,9.9802,9.9706,40.0]
[1672533879898,46.7926,9.9802,9.9708,340.6]
[1672533880320,46.7926,9.9802,9.9709,356.40730786]
[1672533880636,46.7926,9.9802,9.9711,40.0]
[1672533881152,40.0,9.9801,9.9712,20.0]
[1672533881771,46.7926,9.9802,9.9712,20.0]
[1672533882200,46.7926,9.9802,9.9713,40.0]
[1672533882410,46.7926,9.9802,9.9714,20.0]
[1672533882627,40.0,9.9801,9.9714,20.0]
[1672533882833,46.7926,9.9802,9.9714,20.0]
[1672533883158,40.0,9.9801,9.9714,20.0]
[1672533883368,75.26,9.98,9.9714,20.0]
[1672533883770,75.26,9.9801,9.9714,20.0]
[1672533883985,40.0,9.98,9.9714,20.0]
[1672533884310,75.26,9.9799,9.9714,20.0]
[1672533884523,40.0,9.98,9.9714,20.0]
[1672533884738,75.26,9.9799,9.9714,20.0]
[1672533884930,46.7926,9.9802,9.9715,40.0]
[1672533885470,46.7926,9.9802,9.9717,40.0]
[1672533885673,46.7926,9.9802,9.9716,20.0]
[1672533885997,40.0,9.9801,9.9714,20.0]
[1672533886533,40.0,9.9799,9.9714,20.0]
[1672533887134,40.0,9.9801,9.9714,20.0]
[1672533887549,40.0,9.9799,9.9714,20.0]
[1672533887763,40.0,9.9797,9.9714,20.0]
[1672533887968,75.26,9.9796,9.9714,20.0]
[1672533888179,40.0,9.9795,9.9714,20.0]
[1672533889881,40.0,9.9793,9.9714,20.0]
[1672533890070,40.0,9.9791,9.9714,20.0]
[1672533890284,75.26,9.979,9.9714,20.0]
[1672533890490,40.0,9.9789,9.9714,20.0]
[1672533893439,40.0,9.9789,9.9704,142.0549]
[1672533893440,20.0,9.9788,9.9704,119.3708]
[1672533893649,75.27,9.9787,9.9704,119.3708]
[1672533893863,75.27,9.9787,9.9625,47.533]
[1672533894076,75.27,9.9787,9.9609,300.6]
[1672533894077,40.0,9.9785,9.9626,166.4221]
[1672533894280,95.27,9.9784,9.9626,166.4221]
[1672533894498,40.0,9.9783,9.9627,15.80730786]
[1672533894717,40.0,9.9781,9.9627,15.80730786]
[1672533895039,40.0,9.9779,9.9628,166.7463]
[1672533895248,95.27,9.9778,9.9629,161.4027]
[1672533895563,40.0,9.9777,9.963,161.4027]
[1672533895769,40.0,9.9775,9.963,161.4027]
[1672533895982,40.0,9.9773,9.9631,136.5464]
[1672533896191,75.28,9.9772,9.9631,136.5464]
[1672533896401,40.0,9.977,9.9631,136.5464]
[1672533896612,40.0,9.9768,9.9632,23.0009]
[1672533896928,40.0,9.9766,9.9632,23.0009]
[1672533897238,40.0,9.9764,9.9633,23.0009]
[1672533897560,40.0,9.9762,9.9633,23.0009]
[1672533897765,75.29,9.9761,9.9634,23.0009]
[1672533897970,40.0,9.976,9.9634,23.0009]
[1672533898186,40.0,9.9758,9.9634,23.0009]
[1672533898392,40.0,9.9758,9.9632,138.4018]
[1672533898393,75.29,9.9757,9.9635,23.14]
[1672533898724,231.36278891,9.9757,9.9635,23.14]
[1672533898931,320.12378891,9.9756,9.9636,23.14]
[1672533899259,271.36278891,9.9755,9.9636,23.14]
[1672533899574,111.65915813,9.9754,9.9636,23.14]
[1672533899897,40.0,9.9752,9.9636,23.14]
[1672533900208,40.0,9.975,9.9637,23.14]
[1672533900517,75.29,9.9749,9.9637,23.14]
[1672533900724,75.29,9.9749,9.9634,117.2213]
[1672533900725,395.41378891,9.9749,9.9638,23.14]
[1672533900928,196.07278891,9.9748,9.9638,23.14]
[1672533901239,146.95915813,9.9747,9.9638,23.14]
[1672533901449,40.0,9.9746,9.9639,24.3927]
[1672533901664,75.3,9.9745,9.9639,24.3927]
[1672533901992,40.0,9.9744,9.9639,24.3927]
[1672533902306,146.95915813,9.9743,9.9639,24.3927]
[1672533902710,40.0,9.9741,9.964,24.3927]
[1672533903022,40.0,9.9739,9.964,24.3927]
[1672533903247,75.3,9.9738,9.9641,24.3927]
[1672533903448,40.0,9.9737,9.9641,24.3927]
[1672533903649,40.0,9.9735,9.9641,24.3927]
[1672533903866,75.31,9.9734,9.9642,24.3927]
[1672533904080,40.0,9.9733,9.9642,24.3927]
[1672533904302,75.31,9.9732,9.9642,24.3927]
[1672533904513,40.0,9.9731,9.9642,24.3927]
[1672533904719,75.31,9.973,9.9642,24.3927]
[1672533904924,40.0,9.9729,9.9642,24.3927]
[1672533905135,40.0,9.9727,9.9642,24.3927]
[1672533905387,75.31,9.9726,9.9642,24.3927]
[1672533905565,40.0,9.9725,9.9642,24.3927]
[1672533905768,75.31,9.9724,9.9642,24.3927]
[1672533905973,40.0,9.9723,9.9642,24.3927]
[1672533906181,40.0,9.9721,9.9642,24.3927]
[1672533906388,40.0,9.9719,9.9642,24.3927]
[1672533906604,75.32,9.9718,9.9642,24.3927]
[1672533906836,40.0,9.9717,9.9642,24.3927]
[1672533907150,40.0,9.9715,9.9642,24.3927]
[1672533907356,40.0,9.9713,9.9642,24.3927]
[1672533907571,75.32,9.9712,9.9642,24.3927]
[1672533907782,40.0,9.9711,9.9642,24.3927]
[1672533913643,40.0,9.9711,9.9517,300.6]
[1672533913644,40.0,9.9709,9.9517,300.6]
[1672533913852,95.33,9.9708,9.952,30.0]
[1672533914067,40.0,9.9707,9.9522,40.0]
[1672533914274,40.0,9.9705,9.9522,340.6]
[1672533914487,95.33,9.9704,9.9524,300.6]
[1672533914694,40.0,9.9703,9.9525,40.0]
[1672533914916,95.33,9.9702,9.9525,40.0]
[1672533915125,40.0,9.9701,9.9527,300.6]
[1672533915445,40.0,9.9699,9.9528,55.80730786]
[1672533915671,40.0,9.9697,9.9528,55.80730786]
[1672533915869,40.0,9.9695,9.953,40.0]
[1672533916082,95.34,9.9694,9.953,40.0]
[1672533916397,40.0,9.9693,9.953,40.0]
[1672533916607,40.0,9.9691,9.9532,40.0]
[1672533916821,40.0,9.9689,9.9532,40.0]
[1672533917016,40.0,9.9687,9.9532,40.0]
[1672533917220,95.34,9.9686,9.9534,40.0]
[1672533917453,40.0,9.9685,9.9534,40.0]
[1672533917663,40.0,9.9683,9.9534,40.0]
[1672533917885,95.35,9.9682,9.9536,40.0]
[1672533918182,40.0,9.9681,9.9536,40.0]
[1672533918400,40.0,9.9679,9.9538,40.0]
[1672533918578,95.35,9.9678,9.9538,40.0]
[1672533918796,40.0,9.9677,9.9538,40.0]
[1672533919003,95.35,9.9676,9.954,40.0]
[1672533919218,40.0,9.9675,9.954,40.0]
[1672533919424,95.35,9.9674,9.9539,156.633]
[1672533919649,40.0,9.9673,9.954,156.633]
[1672533919953,40.0,9.9671,9.9541,40.0]
[1672533920173,40.0,9.9669,9.9541,202.8844]
[1672533920383,95.36,9.9668,9.9541,202.8844]
[1672533920609,40.0,9.9667,9.9541,202.8844]
[1672533920814,40.0,9.9665,9.9543,40.0]
[1672533921141,40.0,9.9663,9.9543,40.0]
[1672533921341,40.0,9.9661,9.9545,40.0]
[1672533921552,40.0,9.9659,9.9545,40.0]
[1672533921957,40.0,9.9657,9.9547,40.0]
[1672533922589,40.0,9.9655,9.9549,40.0]
[1672533923125,40.0,9.9653,9.955,23.7632]
[1672533923747,40.0,9.9651,9.9551,23.7632]
[1672533924373,40.0,9.9649,9.9552,23.1643]
[1672533925014,24.9444,9.9648,9.9553,23.1643]
[1672533925769,24.9444,9.9647,9.9554,63.1643]